[Event "Irish New Year Events-IM2 2020"]
[Site "Dublin"]
[Date "2020.01.05"]
[Round "6.15"]
[White "Carroll, Peter"]
[Black "Abdulla, Murad"]
[Result "0-1"]
[ECO "B33"]
[WhiteElo "2087"]
[BlackElo "2257"]
[Annotator "ChessBase"]
[PlyCount "182"]
[EventDate "2020.01.02"]
[EventType "tourn"]
[EventCountry "IRL"]
[SourceTitle "playchess.com"]
[Source "ChessBase"]
[SourceQuality "1"]
[TimeControl "40/5400+30:1800+30"]

1. e4 {[%emt 0:02:36]} c5 {[%emt 0:00:00]} 2. Ne2 {[%emt 0:00:04]} Nc6 {[%emt 0:01:31]} 3. d4 {[%emt 0:00:06]} cxd4 {[%emt 0:00:13]} 4. Nxd4 {[%emt 0:00:04]} Qb6 {[%emt 0:02:44]} 5. Nb3 {[%emt 0:01:55]} e6 {[%emt 0:00:52]} 6. Nc3 {[%emt 0:03:32]} a6 {[%emt 0:02:10]} 7. Bd3 {[%emt 0:02:13]} Nf6 {[%emt 0:02:04]} 8. Qe2 {[%emt 0:00:34]} d6 {[%emt 0:01:25]} 9. Be3 {[%emt 0:01:09]} Qc7 {[%emt 0:00:15]} 10. O-O {[%emt 0:02:45]} b5 {[%emt 0:05:26]} 11. f4 {[%emt 0:02:14]} Be7 {[%emt 0:03:11]} 12. Rad1 {[%emt 0:02:17]} Bb7 {[%emt 0:02:41]} 13. a3 {[%emt 1:17:01]} Rc8 {[%emt 0:02:23]} 14. Nd4 {[%emt 0:00:00]} Na5 {[%emt 0:08:33]} 15. Bf2 {[%emt 0:00:00]} Nd7 {[%emt 0:33:36]} 16. e5 {[%emt 0:00:00]} dxe5 {[%emt 0:07:36]} 17. Nxe6 {[%emt 0:00:00]} fxe6 {[%emt 0:00:46]} 18. Qh5+ {[%emt 0:00:00]} Kd8 {[%emt 0:01:04]} 19. Bxb5 {[%emt 0:00:00]} axb5 {[%emt 0:05:16]} 20. Nxb5 {[%emt 0:00:00]} g6 {[%emt 0:01:27]} 21. Nxc7 {[%emt 0:00:00]} gxh5 {[%emt 0:00:26]} 22. Nxe6+ {[%emt 0:00:00]} Ke8 {[%emt 0:00:12]} 23. Ng7+ {[%emt 0:00:00]} Kf7 {[%emt 0:03:31]} 24. Rxd7 {[%emt 0:00:00]} Bc6 {[%emt 0:04:29]} 25. Ra7 {[%emt 0:00:00]} Bb5 {[%emt 0:01:58]} 26. Nf5 {[%emt 0:00:00]} Bxf1 {[%emt 0:03:28]} 27. Nd6+ {[%emt 0:00:00]} Ke6 {[%emt 0:01:23]} 28. Nxc8 {[%emt 0:00:00]} Rxc8 {[%emt 0:00:48]} 29. Rxa5 {[%emt 0:00:00]} Bc4 {[%emt 0:00:54]} 30. Rxe5+ {[%emt 0:00:00]} Kf7 {[%emt 0:01:53]} 31. Bd4 {[%emt 0:00:00]} Rd8 {[%emt 0:01:18]} 32. c3 {[%emt 0:00:00]} Rb8 {[%emt 0:00:01]} 33. b4 {[%emt 0:00:00]} Ra8 {[%emt 0:00:01]} 34. Rxh5 {[%emt 0:00:00]} Kg6 {[%emt 0:02:08]} 35. g4 {[%emt 0:00:00]} h6 {[%emt 0:00:50]} 36. f5+ {[%emt 0:00:28]} Kh7 {[%emt 0:00:01]} 37. Be3 {[%emt 0:00:39]} Bf8 {[%emt 0:00:06]} 38. g5 {[%emt 0:00:56]} Be2 {[%emt 0:00:18]} 39. g6+ {[%emt 0:00:16]} Kg8 {[%emt 0:00:25]} 40. Rh4 {[%emt 0:00:27]} Bd3 {[%emt 0:01:21]} 41. Rf4 {[%emt 0:31:16]} Rxa3 {[%emt 0:30:20]} 42. Bd4 {[%emt 0:00:31]} Ra2 {[%emt 0:00:41]} 43. g7 {[%emt 0:02:58]} Bd6 {[%emt 0:01:01]} 44. Rh4 {[%emt 0:00:35]} Ra1+ {[%emt 0:00:41]} 45. Kf2 {[%emt 0:01:20]} Bxh2 {[%emt 0:01:03]} 46. Rxh6 {[%emt 0:00:58]} Bg1+ {[%emt 0:00:00]} 47. Kf3 {[%emt 0:00:50]} Rf1+ {[%emt 0:00:18]} 48. Kg3 {[%emt 0:02:52]} Bxd4 {[%emt 0:00:12]} 49. cxd4 {[%emt 0:00:06]} Rxf5 {[%emt 0:00:13]} 50. Rh4 {[%emt 0:01:11]} Rb5 {[%emt 0:00:42]} 51. Rg4 {[%emt 0:00:29]} Rxb4 {[%emt 0:00:14]} 52. Kf2 {[%emt 0:00:36]} Rb6 {[%emt 0:00:13]} 53. Ke3 {[%emt 0:00:37]} Bg6 {[%emt 0:00:07]} 54. Rf4 {[%emt 0:00:58]} Kxg7 {[%emt 0:00:04]} 55. Kd2 {[%emt 0:00:13]} Bf7 {[%emt 0:00:12]} 56. Ke3 {[%emt 0:00:22]} Kf8 {[%emt 0:00:09]} 57. Ke4 {[%emt 0:00:16]} Ke7 {[%emt 0:00:13]} 58. Rf2 {[%emt 0:00:22]} Rb5 {[%emt 0:00:44]} 59. Rd2 {[%emt 0:00:34]} Kd6 {[%emt 0:00:16]} 60. Rh2 {[%emt 0:00:30]} Bg6+ {[%emt 0:00:17]} 61. Kf4 {[%emt 0:00:39]} Rf5+ {[%emt 0:01:04]} 62. Ke3 {[%emt 0:00:46]} Bh5 {[%emt 0:01:48]} 63. Ra2 {[%emt 0:01:01]} Be8 {[%emt 0:00:17]} 64. Rf2 {[%emt 0:00:14]} Rh5 {[%emt 0:00:32]} 65. Rf6+ {[%emt 0:00:21]} Kd5 {[%emt 0:00:11]} 66. Rf8 {[%emt 0:00:44]} Bd7 {[%emt 0:00:23]} 67. Rd8 {[%emt 0:00:27]} Rh7 {[%emt 0:00:02]} 68. Kd3 {[%emt 0:00:12]} Re7 {[%emt 0:00:02]} 69. Kc3 {[%emt 0:00:11]} Kc6 {[%emt 0:00:54]} 70. Kc4 {[%emt 0:01:11]} Re3 {[%emt 0:00:16]} 71. d5+ {[%emt 0:02:09]} Kd6 {[%emt 0:00:01]} 72. Rh8 {[%emt 0:00:43]} Re4+ {[%emt 0:00:12]} 73. Kd3 {[%emt 0:00:03]} Rg4 {[%emt 0:00:24]} 74. Rd8 {[%emt 0:00:23]} Kc7 {[%emt 0:01:10]} 75. Rh8 {[%emt 0:00:11]} Bb5+ {[%emt 0:00:14]} 76. Ke3 {[%emt 0:00:23]} Bc4 {[%emt 0:00:05]} 77. d6+ {[%emt 0:00:30]} Kxd6 {[%emt 0:00:14]} 78. Rd8+ {[%emt 0:00:30]} Ke5 {[%emt 0:00:48]} 79. Re8+ {[%emt 0:00:09]} Be6 {[%emt 0:00:48]} 80. Kf3 {[%emt 0:00:05]} Rh4 {[%emt 0:00:45]} 81. Ke3 {[%emt 0:00:12]} Rh3+ {[%emt 0:00:09]} 82. Ke2 {[%emt 0:00:35]} Kd5 {[%emt 0:01:18]} 83. Rd8+ {[%emt 0:00:50]} Kc4 {[%emt 0:00:11]} 84. Re8 {[%emt 0:01:01]} Bd5 {[%emt 0:00:20]} 85. Rc8+ {[%emt 0:00:27]} Kd4 {[%emt 0:00:05]} 86. Rd8 {[%emt 0:01:17]} Rh2+ {[%emt 0:00:26]} 87. Kf1 {[%emt 0:00:14]} Ke4 {[%emt 0:00:43]} 88. Rd7 {[%emt 0:00:43]} Kf3 {[%emt 0:01:36]} 89. Kg1 {[%emt 0:00:57]} Rd2 {[%emt 0:01:47]} 90. Rd8 {[%emt 0:00:02]} Kg3 {[%emt 0:00:55]} 91. Kf1 {[%emt 0:00:26]} Bc4+ {[%emt 0:00:05]} 0-1

[Event "Irish New Year Events-IM2 2020"]
[Site "Dublin"]
[Date "2020.01.05"]
[Round "7.11"]
[White "Abdulla, Murad"]
[Black "Baburin, Alexander"]
[Result "1/2-1/2"]
[ECO "B03"]
[WhiteElo "2257"]
[BlackElo "2419"]
[Annotator "ChessBase"]
[PlyCount "39"]
[EventDate "2020.01.02"]
[EventType "tourn"]
[EventCountry "IRL"]
[SourceTitle "playchess.com"]
[Source "ChessBase"]
[SourceQuality "1"]
[TimeControl "5400+30"]

1. e4 {[%emt 0:00:00]} Nf6 {[%emt 0:00:00]} 2. e5 {[%emt 0:00:00]} Nd5 {[%emt 0:00:15]} 3. d4 {[%emt 0:00:14]} d6 {[%emt 0:00:06]} 4. c4 {[%emt 0:00:08]} Nb6 {[%emt 0:00:05]} 5. f4 {[%emt 0:01:24]} Bf5 {[%emt 0:07:11]} 6. Nc3 {[%emt 0:01:19]} e6 {[%emt 0:00:10]} 7. Be3 {[%emt 0:00:31]} Be7 {[%emt 0:04:03]} 8. Nf3 {[%emt 0:01:15]} O-O {[%emt 0:00:49]} 9. Be2 {[%emt 0:00:20]} dxe5 {[%emt 0:00:54]} 10. fxe5 {[%emt 0:00:19]} Nc6 {[%emt 0:02:31]} 11. O-O {[%emt 0:00:36]} f6 {[%emt 0:00:05]} 12. exf6 {[%emt 0:00:22]} Bxf6 {[%emt 0:03:52]} 13. Qd2 {[%emt 0:00:09]} Qe7 {[%emt 0:07:19]} 14. Rad1 {[%emt 0:00:11]} Rad8 {[%emt 0:00:15]} 15. Bf2 {[%emt 0:01:26]} Kh8 {[%emt 0:12:22]} 16. Qe3 {[%emt 0:10:34]} Bg4 {[%emt 0:06:28]} 17. Qe4 {[%emt 0:13:30]} Bf5 {[%emt 0:06:04]} 18. Qe3 {[%emt 0:02:43]} Bg4 {[%emt 0:00:11]} 19. Qe4 {[%emt 0:16:36]} Bf5 {[%emt 0:02:18]} 20. Qe3 {[%emt 0:00:22]} 1/2-1/2

[Event "Irish New Year Events-IM2 2020"]
[Site "Dublin"]
[Date "2020.01.05"]
[Round "7.12"]
[White "Kanyamarala, Trisha"]
[Black "Carroll, Peter"]
[Result "1-0"]
[ECO "A48"]
[WhiteElo "2195"]
[BlackElo "2087"]
[Annotator "ChessBase"]
[PlyCount "49"]
[EventDate "2020.01.02"]
[EventType "tourn"]
[EventCountry "IRL"]
[SourceTitle "playchess.com"]
[Source "ChessBase"]
[SourceQuality "1"]
[TimeControl "5400+30"]

1. d4 {[%emt 0:00:00]} Nf6 {[%emt 0:05:06]} 2. Nf3 {[%emt 0:00:00]} g6 {[%emt 0:01:16]} 3. e3 {[%emt 0:00:04]} Bg7 {[%emt 0:00:08]} 4. Be2 {[%emt 0:00:07]} O-O {[%emt 0:00:10]} 5. O-O {[%emt 0:00:05]} b6 {[%emt 0:00:54]} 6. b3 {[%emt 0:00:19]} Bb7 {[%emt 0:00:05]} 7. Bb2 {[%emt 0:00:12]} d6 {[%emt 0:00:05]} 8. c4 {[%emt 0:00:28]} Nbd7 {[%emt 0:00:05]} 9. Nc3 {[%emt 0:00:36]} e5 {[%emt 0:01:09]} 10. d5 {[%emt 0:00:45]} Nc5 {[%emt 0:02:36]} 11. Qc2 {[%emt 0:01:42]} a5 {[%emt 0:02:59]} 12. a3 {[%emt 0:03:15]} Bc8 {[%emt 0:00:11]} 13. Nd2 {[%emt 0:01:57]} Nfd7 {[%emt 0:02:22]} 14. b4 {[%emt 0:04:27]} Nb7 {[%emt 0:00:07]} 15. Nb5 {[%emt 0:07:39]} f5 {[%emt 0:00:32]} 16. f4 {[%emt 0:01:05]} Rf7 {[%emt 0:01:10]} 17. e4 {[%emt 0:04:25]} Nf8 {[%emt 0:01:21]} 18. Bd3 {[%emt 0:10:06]} fxe4 {[%emt 0:01:55]} 19. Nxe4 {[%emt 0:00:56]} exf4 {[%emt 0:00:23]} 20. Bxg7 {[%emt 0:00:48]} Kxg7 {[%emt 0:00:17]} 21. Qb2+ {[%emt 0:00:54]} Kg8 {[%emt 0:00:39]} 22. Nd4 {[%emt 0:00:58]} Bd7 {[%emt 0:02:05]} 23. Nc6 {[%emt 0:01:38]} Qh4 {[%emt 0:01:02]} 24. g3 {[%emt 0:01:53]} Qh3 {[%emt 0:00:36]} 25. Ng5 {[%emt 0:00:53]} 1-0

[Event "Irish New Year Events-IM2 2020"]
[Site "Dublin"]
[Date "2020.01.05"]
[Round "7.14"]
[White "Haque, Muhtarim-Ul"]
[Black "Han, Yichen"]
[Result "0-1"]
[ECO "D11"]
[WhiteElo "2045"]
[BlackElo "2257"]
[Annotator "ChessBase"]
[PlyCount "106"]
[EventDate "2020.01.02"]
[EventType "tourn"]
[EventCountry "IRL"]
[SourceTitle "playchess.com"]
[Source "ChessBase"]
[SourceQuality "1"]
[TimeControl "5400+30"]

1. d4 {[%emt 0:00:00]} d5 {[%emt 0:01:47]} 2. c4 {[%emt 0:00:00]} c6 {[%emt 0:00:08]} 3. Nf3 {[%emt 0:00:00]} Nf6 {[%emt 0:00:10]} 4. g3 {[%emt 0:00:00]} Bf5 {[%emt 0:01:17]} 5. Bg2 {[%emt 0:00:13]} e6 {[%emt 0:00:12]} 6. O-O {[%emt 0:00:11]} h6 {[%emt 0:00:11]} 7. Nc3 {[%emt 0:00:34]} Nbd7 {[%emt 0:01:43]} 8. Nd2 {[%emt 0:01:00]} Be7 {[%emt 0:05:25]} 9. Re1 {[%emt 0:00:30]} O-O {[%emt 0:01:03]} 10. e4 {[%emt 0:00:29]} dxe4 {[%emt 0:00:25]} 11. Ndxe4 {[%emt 0:00:15]} Nxe4 {[%emt 0:02:15]} 12. Nxe4 {[%emt 0:00:08]} Nf6 {[%emt 0:03:27]} 13. Nc3 {[%emt 0:01:52]} Qb6 {[%emt 0:14:51]} 14. h3 {[%emt 0:01:41]} Rad8 {[%emt 0:03:50]} 15. d5 {[%emt 0:00:28]} cxd5 {[%emt 0:01:26]} 16. cxd5 {[%emt 0:00:16]} Bc5 {[%emt 0:00:50]} 17. Qf3 {[%emt 0:01:33]} Nxd5 {[%emt 0:02:51]} 18. Na4 {[%emt 0:00:41]} Qb4 {[%emt 0:01:21]} 19. Nc3 {[%emt 0:00:12]} Nxc3 {[%emt 0:00:46]} 20. bxc3 {[%emt 0:00:09]} Qb6 {[%emt 0:00:15]} 21. Bf4 {[%emt 0:02:07]} Rd3 {[%emt 0:01:06]} 22. Qe2 {[%emt 0:00:48]} Rxc3 {[%emt 0:01:15]} 23. Rac1 {[%emt 0:00:43]} Rxc1 {[%emt 0:01:36]} 24. Bxc1 {[%emt 0:01:02]} Rd8 {[%emt 0:01:48]} 25. Be3 {[%emt 0:01:46]} Bxe3 {[%emt 0:00:23]} 26. Qxe3 {[%emt 0:00:02]} Qxe3 {[%emt 0:00:26]} 27. Rxe3 {[%emt 0:00:02]} b6 {[%emt 0:01:19]} 28. Kf1 {[%emt 0:01:21]} Rd1+ {[%emt 0:01:29]} 29. Ke2 {[%emt 0:00:46]} Ra1 {[%emt 0:00:51]} 30. a3 {[%emt 0:01:24]} Ra2+ {[%emt 0:00:39]} 31. Kf3 {[%emt 0:00:17]} a5 {[%emt 0:00:35]} 32. Bf1 {[%emt 0:00:49]} Rb2 {[%emt 0:00:32]} 33. g4 {[%emt 0:00:35]} Bc2 {[%emt 0:00:23]} 34. Rc3 {[%emt 0:02:30]} Rb3 {[%emt 0:05:06]} 35. Rxb3 {[%emt 0:00:16]} Bxb3 {[%emt 0:00:01]} 36. Ke4 {[%emt 0:00:19]} Kf8 {[%emt 0:00:14]} 37. Bb5 {[%emt 0:00:31]} Ke7 {[%emt 0:00:20]} 38. f4 {[%emt 0:00:20]} Kd6 {[%emt 0:00:13]} 39. h4 {[%emt 0:00:36]} f6 {[%emt 0:00:37]} 40. g5 {[%emt 0:01:20]} fxg5 {[%emt 0:00:51]} 41. fxg5 {[%emt 0:00:07]} hxg5 {[%emt 0:00:07]} 42. hxg5 {[%emt 0:00:03]} Bd5+ {[%emt 0:00:24]} 43. Kf4 {[%emt 0:00:13]} Bb3 {[%emt 0:01:00]} 44. Bd3 {[%emt 0:00:19]} Ba4 {[%emt 0:01:11]} 45. Kg4 {[%emt 0:00:18]} Be8 {[%emt 0:00:18]} 46. Kf4 {[%emt 0:00:36]} b5 {[%emt 0:00:30]} 47. Bc2 {[%emt 0:00:27]} b4 {[%emt 0:00:33]} 48. axb4 {[%emt 0:01:05]} axb4 {[%emt 0:00:10]} 49. Kg4 {[%emt 0:00:34]} e5 {[%emt 0:00:58]} 50. Kf5 {[%emt 0:00:16]} Bf7 {[%emt 0:00:17]} 51. Bd3 {[%emt 0:01:46]} b3 {[%emt 0:00:22]} 52. Be4 {[%emt 0:00:38]} b2 {[%emt 0:00:13]} 53. Bb1 {[%emt 0:00:04]} Bd5 {[%emt 0:01:22]} 0-1

[Event "Irish New Year Events-IM2 2020"]
[Site "Dublin"]
[Date "2020.01.05"]
[Round "7.15"]
[White "Froewis, Georg"]
[Black "Alienkin, Aleksander"]
[Result "1-0"]
[ECO "A14"]
[WhiteElo "2470"]
[BlackElo "2382"]
[Annotator "ChessBase"]
[PlyCount "85"]
[EventDate "2020.01.02"]
[EventType "tourn"]
[EventCountry "IRL"]
[SourceTitle "playchess.com"]
[Source "ChessBase"]
[SourceQuality "1"]
[TimeControl "5400+30"]

1. Nf3 {[%emt 0:00:00]} Nf6 {[%emt 0:01:14]} 2. c4 {[%emt 0:00:00]} e6 {[%emt 0:00:42]} 3. b3 {[%emt 0:00:00]} b6 {[%emt 0:01:05]} 4. g3 {[%emt 0:00:00]} Bb7 {[%emt 0:00:25]} 5. Bg2 {[%emt 0:00:00]} Be7 {[%emt 0:02:09]} 6. Bb2 {[%emt 0:00:00]} O-O {[%emt 0:01:00]} 7. O-O {[%emt 0:00:00]} c5 {[%emt 0:02:12]} 8. e3 {[%emt 0:01:08]} d5 {[%emt 0:01:01]} 9. d3 {[%emt 0:00:06]} Nbd7 {[%emt 0:01:21]} 10. Qe2 {[%emt 0:00:54]} Qc7 {[%emt 0:04:41]} 11. Nc3 {[%emt 0:00:37]} a6 {[%emt 0:00:55]} 12. Rac1 {[%emt 0:00:56]} Rac8 {[%emt 0:03:08]} 13. Ne1 {[%emt 0:12:33]} dxc4 {[%emt 0:13:16]} 14. bxc4 {[%emt 0:00:04]} Bc6 {[%emt 0:02:08]} 15. f4 {[%emt 0:02:38]} b5 {[%emt 0:10:15]} 16. e4 {[%emt 0:01:03]} b4 {[%emt 0:05:12]} 17. Nd1 {[%emt 0:00:33]} Rfd8 {[%emt 0:06:20]} 18. g4 {[%emt 0:01:23]} Ne8 {[%emt 0:00:37]} 19. Ne3 {[%emt 0:03:24]} e5 {[%emt 0:03:39]} 20. Nd5 {[%emt 0:09:33]} Bxd5 {[%emt 0:10:55]} 21. cxd5 {[%emt 0:00:02]} f6 {[%emt 0:03:06]} 22. fxe5 {[%emt 0:02:30]} fxe5 {[%emt 0:01:11]} 23. Nf3 {[%emt 0:00:06]} Bd6 {[%emt 0:05:58]} 24. g5 {[%emt 0:05:11]} Nf8 {[%emt 0:00:51]} 25. Nh4 {[%emt 0:00:04]} Qe7 {[%emt 0:01:37]} 26. Qg4 {[%emt 0:01:15]} g6 {[%emt 0:00:24]} 27. Bh3 {[%emt 0:02:24]} Rc7 {[%emt 0:00:33]} 28. Ng2 {[%emt 0:01:53]} c4 {[%emt 0:03:53]} 29. dxc4 {[%emt 0:00:25]} a5 {[%emt 0:00:37]} 30. Kh1 {[%emt 0:01:30]} a4 {[%emt 0:02:02]} 31. Ne1 {[%emt 0:00:30]} b3 32. axb3 Rb8 {[%emt 0:01:00]} 33. Rf3 {[%emt 0:19:50]} Rcb7 {[%emt 0:00:54]} 34. c5 {[%emt 0:09:38]} Bxc5 {[%emt 0:00:52]} 35. Nd3 {[%emt 0:05:15]} Bd6 {[%emt 0:05:34]} 36. Rcf1 {[%emt 0:00:56]} Ng7 {[%emt 0:00:49]} 37. bxa4 {[%emt 0:01:13]} Rb3 {[%emt 0:00:51]} 38. Ba1 {[%emt 0:01:05]} Ra3 {[%emt 0:00:45]} 39. Qg3 {[%emt 0:01:43]} Nh5 {[%emt 0:00:25]} 40. Qf2 {[%emt 0:00:41]} Rxa4 {[%emt 0:00:57]} 41. Bxe5 {[%emt 0:01:39]} Rxe4 {[%emt 0:01:30]} 42. Rxf8+ {[%emt 0:00:09]} Rxf8 {[%emt 0:00:24]} 43. Qxf8+ {[%emt 0:00:05]} 1-0

[Event "Irish New Year Events-IM2 2020"]
[Site "Dublin"]
[Date "2020.01.06"]
[Round "8.12"]
[White "Han, Yichen"]
[Black "Froewis, Georg"]
[Result "1-0"]
[ECO "A46"]
[WhiteElo "2257"]
[BlackElo "2470"]
[Annotator "RC"]
[PlyCount "59"]
[EventDate "2020.01.02"]
[EventType "tourn"]
[EventCountry "IRL"]
[SourceTitle "playchess.com"]
[Source "ChessBase"]
[SourceQuality "1"]
[TimeControl "40/5400+30:1800+30"]

1. d4 {[%emt 0:00:00]} e6 {[%emt 0:00:00]} 2. Nf3 {[%emt 0:00:00]} Nf6 {[%emt 0:00:00]} 3. Bf4 {[%emt 0:00:04]} Be7 {[%emt 0:02:48]} 4. e3 {[%emt 0:06:48]} Nh5 {[%emt 0:01:26]} 5. Bg3 {[%emt 0:02:04]} Nxg3 {[%emt 0:00:45]} 6. hxg3 {[%emt 0:00:09]} d6 {[%emt 0:01:04]} 7. Bd3 {[%emt 0:00:42]} h6 {[%emt 0:00:05]} 8. c4 {[%emt 0:00:48]} Nd7 {[%emt 0:02:41]} 9. Nc3 {[%emt 0:01:34]} c6 {[%emt 0:00:26]} 10. Qc2 {[%emt 0:03:26]} d5 {[%emt 0:00:14]} 11. O-O {[%emt 0:06:07]} dxc4 {[%emt 0:02:11]} 12. Bxc4 {[%emt 0:00:11]} b5 {[%emt 0:00:02]} 13. Bd3 {[%emt 0:02:33]} Bb7 {[%emt 0:00:02]} 14. Rfd1 {[%emt 0:06:46]} Qb6 {[%emt 0:01:17]} 15. a4 {[%emt 0:12:28]} a6 {[%emt 0:00:07]} 16. axb5 {[%emt 0:02:55]} cxb5 {[%emt 0:00:06]} 17. Be4 {[%emt 0:00:44]} O-O {[%emt 0:00:38]} 18. d5 {[%emt 0:09:03]} f5 {[%emt 0:09:03]} 19. d6 {[%emt 0:04:08]} Bxe4 {[%emt 0:10:28]} 20. Nxe4 {[%emt 0:00:14]} Bd8 {[%emt 0:00:09]} 21. Nc3 {[%emt 0:39:46]} Rc8 {[%emt 0:02:37]} 22. Qb3 {[%emt 0:00:00]} Rf6 {[%emt 0:00:09]} 23. Rac1 {[%emt 0:00:00]} Rc4 {[%emt 0:05:51]} 24. Ne2 {[%emt 0:00:00]} Nc5 {[%emt 0:05:42]} 25. Qa2 {[%emt 0:00:00]} Ra4 {[%emt 0:10:09]} 26. Qb1 {[%emt 0:00:00]} Nd7 {[%emt 0:11:27]} 27. b3 {[%emt 0:00:00]} Rb4 {[%emt 0:00:34]} 28. Qc2 {[%emt 0:00:00]} e5 {[%emt 0:06:31]} 29. Qc8 {[%emt 0:00:00]} Rf7 {[%emt 0:00:06]} 30. Rc6 {[%emt 0:00:00]} 1-0

[Event "Irish New Year Events-IM2 2020"]
[Site "Dublin"]
[Date "2020.01.06"]
[Round "8.13"]
[White "Daly, Colm"]
[Black "Haque, Muhtarim-Ul"]
[Result "1-0"]
[ECO "E92"]
[WhiteElo "2238"]
[BlackElo "2045"]
[Annotator "ChessBase"]
[PlyCount "99"]
[EventDate "2020.01.02"]
[EventType "tourn"]
[EventCountry "IRL"]
[SourceTitle "playchess.com"]
[Source "ChessBase"]
[SourceQuality "1"]
[TimeControl "40/5400+30:1800+30"]

1. d4 {[%emt 0:03:49]} Nf6 {[%emt 0:02:47]} 2. Nf3 {[%emt 0:00:22]} g6 {[%emt 0:00:16]} 3. c4 {[%emt 0:00:06]} Bg7 {[%emt 0:00:11]} 4. Nc3 {[%emt 0:00:07]} O-O {[%emt 0:00:11]} 5. e4 {[%emt 0:00:05]} d6 {[%emt 0:00:05]} 6. Be2 {[%emt 0:00:04]} e5 {[%emt 0:00:10]} 7. d5 {[%emt 0:00:10]} a5 {[%emt 0:00:14]} 8. Bg5 {[%emt 0:00:18]} Na6 {[%emt 0:00:23]} 9. h4 {[%emt 0:00:33]} h6 {[%emt 0:01:26]} 10. Bxf6 {[%emt 0:00:07]} Bxf6 {[%emt 0:00:44]} 11. h5 {[%emt 0:00:14]} g5 {[%emt 0:00:29]} 12. Nd2 {[%emt 0:04:26]} c6 {[%emt 0:03:40]} 13. Bg4 {[%emt 0:00:58]} Qe8 {[%emt 0:01:20]} 14. Nf1 {[%emt 0:01:31]} cxd5 {[%emt 0:06:27]} 15. Nxd5 {[%emt 0:00:53]} Bd8 {[%emt 0:00:10]} 16. Nfe3 {[%emt 0:00:16]} Be6 {[%emt 0:03:22]} 17. O-O {[%emt 0:02:16]} Nc5 {[%emt 0:04:50]} 18. Nf5 {[%emt 0:01:53]} Bxf5 {[%emt 0:01:33]} 19. Bxf5 {[%emt 0:00:03]} Ne6 {[%emt 0:01:53]} 20. g3 {[%emt 0:00:55]} Nd4 {[%emt 0:01:23]} 21. Qg4 {[%emt 0:00:10]} Nxf5 {[%emt 0:01:57]} 22. Qxf5 {[%emt 0:00:02]} Kg7 {[%emt 0:02:56]} 23. Kg2 {[%emt 0:00:48]} Qe6 {[%emt 0:07:35]} 24. g4 {[%emt 0:01:35]} Qe8 {[%emt 0:03:39]} 25. Rfc1 {[%emt 0:00:11]} Qc6 {[%emt 0:06:33]} 26. Rc3 {[%emt 0:03:25]} Qe8 {[%emt 0:03:32]} 27. Rac1 {[%emt 0:00:10]} Qe6 {[%emt 0:01:36]} 28. Rb3 {[%emt 0:00:35]} Rb8 {[%emt 0:00:46]} 29. Rcc3 {[%emt 0:00:23]} Qe8 {[%emt 0:03:33]} 30. Rb5 {[%emt 0:00:10]} Qc6 {[%emt 0:01:24]} 31. a4 {[%emt 0:01:50]} Qe8 {[%emt 0:01:43]} 32. c5 {[%emt 0:00:31]} dxc5 {[%emt 0:01:53]} 33. Rbxc5 {[%emt 0:00:36]} Qe6 {[%emt 0:00:58]} 34. Rb5 {[%emt 0:02:54]} Qxf5 {[%emt 0:02:50]} 35. exf5 {[%emt 0:00:39]} e4 {[%emt 0:00:59]} 36. Re3 {[%emt 0:01:00]} Re8 {[%emt 0:01:07]} 37. f3 {[%emt 0:00:18]} Bf6 {[%emt 0:00:31]} 38. fxe4 {[%emt 0:01:18]} Bd4 {[%emt 0:01:10]} 39. Re2 {[%emt 0:00:53]} b6 {[%emt 0:00:18]} 40. Kf3 {[%emt 0:00:27]} Rec8 {[%emt 0:01:27]} 41. e5 {[%emt 0:30:37]} Rc1 {[%emt 0:30:17]} 42. e6 {[%emt 0:01:42]} fxe6 {[%emt 0:00:27]} 43. Rxe6 {[%emt 0:00:13]} Rc4 {[%emt 0:01:58]} 44. b3 {[%emt 0:00:31]} Rc5 {[%emt 0:00:24]} 45. Ke4 {[%emt 0:01:33]} Bf2 {[%emt 0:01:45]} 46. f6+ {[%emt 0:01:49]} Kg8 {[%emt 0:00:35]} 47. Kf5 {[%emt 0:00:34]} Rd8 {[%emt 0:01:23]} 48. Rxc5 {[%emt 0:00:37]} bxc5 {[%emt 0:00:25]} 49. Kg6 {[%emt 0:01:00]} Bg3 {[%emt 0:01:47]} 50. f7+ {[%emt 0:00:27]} 1-0